bitfinex/quotes_BTCUSD_20220212
["timestamp","ask_amount","ask_price","bid_price","bid_amount"]
[1644690543745,0.677068,42871.0,42861.0,0.00295099]
[1644690543945,0.677068,42871.0,42861.0,0.00335189]
[1644690543946,0.327132,42868.0,42861.0,0.00335189]
[1644690544146,0.0842574,42862.0,42861.0,0.00335189]
[1644690544344,0.0842574,42862.0,42858.0,4.13e-06]
[1644690544345,0.00334,42861.0,42858.0,4.13e-06]
[1644690544546,1.31788842,42860.0,42851.0,0.05500941]
[1644690544748,0.04547416,42858.0,42851.0,0.01]
[1644690544944,0.03991066,42856.0,42851.0,0.01]
[1644690545144,0.36855235,42855.0,42851.0,0.01]
[1644690545351,0.327132,42853.0,42851.0,0.01]
[1644690545547,0.327132,42853.0,42848.0,0.0011]
[1644690545548,1.05,42853.0,42848.0,0.0011]
[1644690545747,1.05,42852.0,42841.0,0.0333]
[1644690546045,1.045,42852.0,42843.0,0.327196]
[1644690546244,1.045,42852.0,42842.0,0.23687035]
[1644690546645,0.045,42852.0,42842.0,0.23687035]
[1644690546845,0.327196,42851.0,42842.0,0.22187035]
[1644690547044,0.327196,42850.0,42842.0,0.22187035]
[1644690547245,0.1,42850.0,42842.0,0.22187035]
[1644690547506,0.05,42850.0,42847.0,0.06760173]
[1644690547705,0.05,42852.0,42847.0,0.06760173]
[1644690548304,0.327196,42851.0,42847.0,0.06760173]
[1644690548604,0.05,42852.0,42842.0,0.22187035]
[1644690548803,0.05,42852.0,42847.0,0.00059871]
[1644690549002,0.75,42852.0,42842.0,0.21246906]
[1644690549705,0.327218,42850.0,42842.0,0.21246906]
[1644690549908,0.03689582,42854.0,42841.0,0.0033]
[1644690549909,0.08353455,42857.0,42849.0,0.26120453]
[1644690550108,0.0467,42857.0,42849.0,0.26120453]
[1644690550504,0.327218,42856.0,42849.0,0.26120453]
[1644690551242,0.327218,42856.0,42849.0,0.25620453]
[1644690552244,0.05,42864.0,42850.0,0.27259694]
[1644690552444,0.00059859,42856.0,42850.0,0.27259694]
[1644690552646,0.327218,42855.0,42850.0,0.27259694]
[1644690553245,0.327218,42855.0,42849.0,0.25620453]
[1644690553846,0.32138425,42855.0,42849.0,0.25620453]
[1644690554247,0.32138425,42855.0,42854.0,0.07679769]
[1644690554898,0.30527,42856.0,42854.0,0.07679769]
[1644690556393,0.30527,42856.0,42851.0,0.00157579]
[1644690557394,0.3058686,42856.0,42855.0,0.07073686]
[1644690557799,0.0005986,42856.0,42855.0,0.07073686]
[1644690558195,0.327182,42856.0,42855.0,0.07073686]
[1644690558395,0.05,42866.0,42855.0,0.07073686]
[1644690558642,0.00059859,42858.0,42856.0,0.21325373]
[1644690558843,0.294482,42857.0,42856.0,0.21325373]
[1644690559842,0.327178,42858.0,42856.0,0.21325373]
[1644690560042,0.327178,42858.0,42856.0,0.21349207]
[1644690560245,0.427178,42858.0,42856.0,0.21325373]
[1644690560446,0.427178,42858.0,42857.0,0.26790279]
[1644690560447,0.327178,42858.0,42857.0,0.26790279]
[1644690561144,0.327178,42858.0,42856.0,0.48683607]
[1644690561446,0.327178,42858.0,42856.0,0.21325373]
[1644690563298,0.5368,42875.0,42856.0,0.21325373]
[1644690563299,0.00051674,42859.0,42858.0,0.327172]
[1644690563499,0.00051674,42859.0,42858.0,1.394442]
[1644690563698,0.00051674,42859.0,42858.0,1.494442]
[1644690564302,0.175,42880.0,42859.0,0.327172]
[1644690564501,0.19764003,42887.0,42862.0,0.04968442]
[1644690564699,0.04734607,42888.0,42863.0,0.852872]
[1644690564700,0.00031558,42884.0,42863.0,0.852872]
[1644690565003,0.00031558,42888.0,42867.0,0.327172]
[1644690565201,0.00031558,42888.0,42869.0,0.327172]
[1644690565400,0.24689025,42881.0,42870.0,0.373872]
[1644690565601,0.24689025,42881.0,42870.0,0.0467]
[1644690565799,0.0007812,42872.0,42871.0,0.68155054]
[1644690565999,0.0007812,42872.0,42871.0,0.40107854]
[1644690566245,0.0007812,42872.0,42871.0,0.50107854]
[1644690566647,0.000222,42872.0,42871.0,0.82825054]
[1644690567046,0.000222,42872.0,42871.0,0.50107854]
[1644690568648,0.00033082,42874.0,42871.0,0.50107854]
[1644690569050,0.00031558,42888.0,42880.0,0.20556046]
[1644690569251,0.32370238,42876.0,42873.0,0.53416625]
[1644690569449,0.32370238,42876.0,42873.0,0.63416625]
[1644690569650,0.32370238,42876.0,42875.0,0.327172]
[1644690569898,0.32370238,42876.0,42875.0,0.373872]
[1644690571894,0.32370238,42876.0,42875.0,0.0467]
[1644690572298,0.32370238,42876.0,42875.0,0.373872]
[1644690572697,0.32370238,42876.0,42875.0,0.65361033]
[1644690572896,0.32370238,42876.0,42875.0,0.32643833]
[1644690573498,0.32370238,42876.0,42875.0,0.0467]
[1644690574150,0.32370238,42876.0,42875.0,0.64514815]
[1644690574351,0.32370238,42876.0,42875.0,0.74514815]
[1644690575957,0.00059926,42878.0,42875.0,0.84483257]
[1644690576153,0.22066383,42891.0,42876.0,0.56429684]
[1644690576353,0.22066383,42891.0,42877.0,0.0467]
[1644690576554,0.22066383,42891.0,42889.0,0.20339535]
[1644690576756,0.001,42893.0,42890.0,0.327172]
[1644690576954,0.294483,42892.0,42889.0,0.20339535]
[1644690577396,0.294483,42892.0,42890.0,0.12535893]
[1644690577597,0.001,42893.0,42890.0,0.12535893]
[1644690577799,0.00120113,42893.0,42890.0,0.12535893]
[1644690578798,0.001,42893.0,42890.0,0.12535893]
[1644690579397,0.001,42893.0,42890.0,0.39532555]
[1644690579601,0.001,42893.0,42890.0,0.39563408]
[1644690579798,0.001,42893.0,42890.0,0.12535893]
[1644690580398,0.001,42893.0,42891.0,0.2770502]
[1644690580601,0.001,42893.0,42892.0,0.0467]
[1644690580799,0.001,42893.0,42892.0,0.32749399]
[1644690584554,0.001,42893.0,42892.0,0.65466599]
[1644690584996,0.001,42893.0,42892.0,0.75466599]
[1644690586194,0.001,42893.0,42892.0,0.98752063]
[1644690587196,0.001,42893.0,42892.0,0.98252063]
[1644690587998,0.0061999,42899.0,42893.0,0.327172]
[1644690588197,0.0061999,42899.0,42895.0,0.327172]
[1644690588398,0.0061999,42899.0,42896.0,0.33494041]
[1644690588642,0.0061999,42899.0,42896.0,0.0467]
[1644690589045,0.0061999,42899.0,42898.0,0.30676489]
[1644690589244,0.0061999,42899.0,42898.0,0.91606315]
[1644690589446,0.0061999,42899.0,42898.0,1.06276315]
[1644690590745,0.0061999,42899.0,42898.0,0.73559115]
[1644690590945,0.0061999,42899.0,42898.0,0.0467]
[1644690591154,0.3006829,42899.0,42892.0,0.0467]
[1644690591349,0.00031558,42894.0,42876.0,0.8006]
[1644690591552,0.4006829,42899.0,42876.0,0.8006]
[1644690591553,0.29479858,42893.0,42883.0,0.3]
[1644690591846,0.23942012,42888.0,42884.0,0.08862106]
[1644690592046,0.24625074,42893.0,42884.0,0.08862106]
[1644690592248,0.00031558,42892.0,42884.0,0.08862106]
[1644690592496,0.00060237,42897.0,42886.0,0.327172]
[1644690592697,0.00060237,42897.0,42885.0,0.3]
[1644690592894,0.00060237,42897.0,42884.0,0.08862106]
[1644690592895,0.00031558,42896.0,42884.0,0.08862106]
[1644690593095,0.21275515,42895.0,42887.0,0.19598615]
[1644690593296,0.00031558,42892.0,42887.0,0.19598615]
[1644690593498,0.21704938,42894.0,42887.0,0.19598615]
[1644690593696,0.00031558,42892.0,42887.0,0.19598615]
[1644690594099,0.00031558,42892.0,42884.0,0.08862106]
[1644690595298,0.294483,42886.0,42882.0,0.2699]
[1644690595500,0.23073045,42887.0,42877.0,0.6338]
[1644690595699,0.00031558,42884.0,42875.0,0.000304]
[1644690595900,0.294483,42883.0,42875.0,0.000304]
[1644690596150,0.00031558,42884.0,42875.0,0.000304]
[1644690596348,0.20115831,42883.0,42875.0,0.000304]
[1644690596954,0.23077588,42880.0,42875.0,0.000304]
[1644690597150,0.23077588,42880.0,42876.0,0.327172]
[1644690597349,0.23077588,42880.0,42875.0,0.000304]
[1644690597550,0.294483,42879.0,42875.0,0.000304]
[1644690597751,0.00031558,42876.0,42875.0,0.000304]
[1644690597950,0.54629101,42876.0,42875.0,0.000304]
[1644690598150,0.59629101,42876.0,42875.0,0.000304]
[1644690598350,0.64629101,42876.0,42875.0,0.000304]
[1644690599149,0.69299101,42876.0,42870.0,0.08794792]
[1644690599352,0.40073633,42869.0,42865.0,0.00023834]
[1644690599550,0.40073633,42869.0,42864.0,0.2488129]
[1644690599751,0.40073633,42869.0,42864.0,0.24857456]
[1644690600596,0.40073633,42869.0,42863.0,0.00023834]
[1644690600797,0.40073633,42869.0,42855.0,1.1635]
[1644690600798,0.50073633,42869.0,42860.0,0.00023834]
[1644690601001,0.50073633,42869.0,42859.0,0.00023834]
[1644690601002,0.54743633,42869.0,42859.0,0.00023834]
[1644690601199,0.54743633,42869.0,42860.0,0.327172]
[1644690601399,0.44743633,42869.0,42857.0,0.327172]
[1644690601599,0.40105191,42869.0,42862.0,0.24735746]
[1644690601799,0.17681942,42869.0,42863.0,0.327172]
[1644690602006,0.17650384,42869.0,42864.0,0.19017507]
[1644690602199,0.17650384,42869.0,42864.0,0.19041341]
[1644690602399,0.17650384,42869.0,42865.0,0.327172]
[1644690602600,0.17650384,42869.0,42866.0,0.327172]
[1644690602899,0.17650384,42869.0,42865.0,0.00023834]
[1644690602900,0.17650384,42869.0,42865.0,0.327172]
[1644690603299,0.17650384,42869.0,42864.0,0.00023834]
[1644690603501,0.17650384,42869.0,42865.0,0.327172]
[1644690603759,0.00031558,42867.0,42865.0,0.327172]
[1644690603959,0.00031558,42867.0,42864.0,0.00023834]
[1644690604160,0.00031558,42867.0,42863.0,0.088996]
[1644690604161,0.00031558,42867.0,42863.0,0.08923434]
[1644690604958,0.20042551,42868.0,42863.0,0.08923434]
[1644690605159,0.00031558,42864.0,42863.0,0.08923434]
[1644690605358,0.00031558,42864.0,42863.0,0.088996]
[1644690608701,0.00031558,42864.0,42862.0,0.23]
[1644690609003,0.294483,42863.0,42862.0,0.23]
[1644690609206,0.14417467,42863.0,42862.0,0.23]
[1644690609402,0.28834934,42863.0,42862.0,0.23]
[1644690609806,0.28834934,42863.0,42862.0,0.31137175]
[1644690610005,0.28834934,42863.0,42850.0,0.081663]
[1644690610006,1.274483,42862.0,42850.0,0.081663]
[1644690610204,0.00031558,42853.0,42849.0,0.0011]
[1644690610404,0.00031558,42853.0,42847.0,0.0011]
[1644690610405,0.294483,42852.0,42847.0,0.0011]
[1644690610604,0.05031558,42848.0,42847.0,0.0011]
[1644690610804,0.39149858,42848.0,42847.0,0.0011]
[1644690611005,0.05,42852.0,42847.0,0.39651785]
[1644690611252,0.24502433,42856.0,42848.0,0.327172]
[1644690611451,2.67993814,42851.0,42848.0,0.327172]
[1644690611658,0.24502433,42856.0,42848.0,0.327172]
[1644690611659,0.34502433,42856.0,42848.0,0.327172]
[1644690612055,0.00031558,42849.0,42847.0,0.0011]
[1644690613256,0.00031558,42852.0,42847.0,0.0011]
[1644690613567,0.00031558,42848.0,42847.0,0.0011]
[1644690613756,0.29479858,42848.0,42847.0,0.2311]
[1644690614556,0.62010718,42848.0,42847.0,0.2311]
[1644690614903,0.86428185,42848.0,42847.0,0.2311]
[1644690616297,1.17246366,42848.0,42847.0,0.2311]
[1644690617420,0.37557057,42847.0,42845.0,0.00060109]
[1644690617600,0.38649,42846.0,42845.0,0.00060109]
[1644690617798,0.53028087,42846.0,42845.0,0.00060109]
[1644690618398,0.06499118,42842.0,42841.0,0.0033]
[1644690618653,0.6273313,42842.0,42841.0,0.0033]
[1644690618854,0.7273313,42842.0,42841.0,0.0033]
[1644690619055,0.28979,42840.0,42837.0,0.00180478]
[1644690619256,0.03994963,42838.0,42837.0,0.00180478]
[1644690619455,0.03994963,42838.0,42836.0,0.0022]
[1644690619456,0.0467,42838.0,42836.0,0.0022]
[1644690619655,0.4,42836.0,42831.0,0.0105]
[1644690619859,0.26211143,42834.0,42831.0,0.0105]
[1644690620055,0.31211143,42834.0,42831.0,0.0105]
[1644690620258,0.36211143,42834.0,42832.0,0.32723]
[1644690620456,0.36211143,42834.0,42831.0,0.0105]
[1644690620656,0.36211143,42834.0,42826.0,0.23847116]
[1644690620855,0.36211143,42834.0,42827.0,0.32723]
[1644690621056,0.36211143,42834.0,42830.0,0.06477988]
[1644690621256,0.36211143,42834.0,42826.0,0.1944524]
[1644690621659,0.26211143,42834.0,42827.0,0.32723]
[1644690621857,0.26211143,42834.0,42821.0,0.24618802]
[1644690622058,0.36211143,42834.0,42821.0,0.0122]
[1644690622257,0.29284482,42833.0,42827.0,0.0694705]
[1644690622505,0.28947368,42833.0,42821.0,0.0092]
[1644690622704,0.26211143,42834.0,42822.0,0.32723]
[1644690623005,0.26211143,42834.0,42825.0,0.32723]
[1644690623201,0.14417467,42835.0,42826.0,0.27261637]
[1644690623403,0.14417467,42835.0,42830.0,0.08688265]
[1644690623902,0.14417467,42835.0,42831.0,0.22748849]
[1644690624103,0.14417467,42835.0,42831.0,0.22248849]
[1644690624502,0.14417467,42835.0,42831.0,0.22288799]
[1644690624703,0.28979,42834.0,42831.0,0.22288799]
[1644690625102,0.0467,42837.0,42831.0,0.22288799]
[1644690625103,0.43396467,42832.0,42831.0,0.22288799]
[1644690625302,0.57813934,42832.0,42831.0,0.0003995]
[1644690625506,0.28834934,42832.0,42831.0,0.23]
[1644690625905,0.57813934,42832.0,42831.0,0.23]
[1644690626167,0.28834934,42832.0,42831.0,0.23]
[1644690626866,0.57813934,42832.0,42831.0,0.23]
[1644690627267,0.28834934,42832.0,42831.0,0.23]
[1644690627669,0.28834934,42832.0,42831.0,0.31332904]
[1644690628572,0.32525268,42846.0,42833.0,0.32723]
[1644690628573,0.3,42846.0,42833.0,0.32723]
[1644690628771,0.0006012,42848.0,42834.0,0.0467]
[1644690628971,0.0006012,42848.0,42835.0,0.32723]
[1644690629171,0.19372408,42849.0,42847.0,0.07658309]
[1644690629371,0.19372408,42849.0,42835.0,0.32723]
[1644690629372,0.19372408,42849.0,42835.0,0.23376554]
[1644690629571,0.19372408,42849.0,42836.0,0.30023815]
[1644690629572,0.327227,42848.0,42836.0,0.30023815]
[1644690629770,0.327227,42848.0,42836.0,0.3]
[1644690630014,0.192313,42846.0,42836.0,0.30023815]
[1644690630214,0.292313,42846.0,42836.0,0.00023815]
[1644690630411,0.292313,42846.0,42845.0,0.07431379]
[1644690630912,0.19372408,42849.0,42845.0,0.07431379]
[1644690631113,0.192313,42848.0,42845.0,0.07431379]
[1644690633018,0.00060165,42849.0,42845.0,0.07431379]
[1644690633223,0.327227,42848.0,42845.0,0.07431379]
[1644690633519,0.00060165,42849.0,42847.0,0.5528923]
[1644690633756,0.00060165,42849.0,42848.0,0.673927]
[1644690633956,0.17650384,42869.0,42848.0,0.773927]
[1644690634155,0.17650384,42869.0,42864.0,0.07710356]
[1644690634557,0.21367127,42868.0,42864.0,0.07710356]
[1644690635360,0.17650384,42869.0,42864.0,0.07710356]
[1644690635561,0.00060414,42868.0,42864.0,0.07710356]
[1644690636357,0.43654371,42869.0,42864.0,0.07710356]
[1644690636760,0.00018929,42868.0,42864.0,0.07710356]
[1644690636960,0.00018929,42868.0,42864.0,0.12380356]
[1644690637600,0.53654371,42869.0,42864.0,0.12380356]
[1644690638405,0.43654371,42869.0,42864.0,0.12380356]
[1644690638603,0.17650384,42869.0,42864.0,0.35380356]
[1644690638804,0.327227,42868.0,42865.0,0.2673217]
[1644690639202,0.17650384,42869.0,42865.0,0.2673217]
[1644690639603,0.327227,42868.0,42866.0,0.0467]
[1644690640304,0.17650384,42869.0,42866.0,0.04786983]
[1644690640906,0.327227,42868.0,42866.0,0.04786983]
[1644690641160,0.17650384,42869.0,42867.0,0.28511921]
[1644690641364,0.17650384,42869.0,42868.0,0.0467]
[1644690641559,0.17650384,42869.0,42868.0,0.68562591]
[1644690641963,0.17650384,42869.0,42868.0,0.56707317]
[1644690642161,0.17650384,42869.0,42868.0,0.35839891]
[1644690643464,0.17650384,42869.0,42868.0,0.45839891]
[1644690644908,0.17150384,42869.0,42868.0,0.45839891]
[1644690645103,0.01,42879.0,42868.0,0.78562591]
[1644690645306,0.01,42879.0,42872.0,0.040819]
[1644690645508,0.01,42879.0,42873.0,0.673927]
[1644690645807,0.01,42879.0,42877.0,0.327227]
[1644690646007,0.01,42879.0,42878.0,0.47971154]
[1644690646203,0.01,42879.0,42878.0,0.80693854]
[1644690646403,0.01,42879.0,42878.0,0.97684099]
[1644690647604,0.01,42879.0,42878.0,0.95092824]
[1644690647804,0.01,42879.0,42878.0,1.27815524]
[1644690648004,0.01,42889.0,42878.0,1.33645424]
[1644690648304,0.01,42889.0,42881.0,0.099106]
[1644690648508,0.01,42889.0,42882.0,0.33512457]
[1644690648760,0.005,42889.0,42882.0,0.0467]
[1644690649359,0.005,42889.0,42886.0,0.06425068]
[1644690649559,0.005,42889.0,42887.0,0.0467]
[1644690649757,0.3600318,42894.0,42887.0,0.0467]
[1644690649958,0.1,42894.0,42887.0,0.0467]
[1644690650159,0.05,42894.0,42887.0,0.0467]
[1644690650360,0.05,42894.0,42893.0,0.07000904]
[1644690650560,0.14001807,42891.0,42888.0,0.08129447]
[1644690650759,0.14001807,42891.0,42889.0,0.0467]
[1644690651261,0.13501807,42891.0,42889.0,0.0467]
[1644690652258,0.327227,42890.0,42889.0,0.0467]
[1644690652703,0.327227,42890.0,42879.0,1.6376]
[1644690652704,0.327227,42890.0,42883.0,0.0467]
[1644690652906,0.13501807,42891.0,42883.0,0.0467]
[1644690653304,0.13501807,42891.0,42884.0,0.06597327]
[1644690653504,0.13501807,42891.0,42886.0,0.57481841]
[1644690653704,0.13501807,42891.0,42887.0,0.327227]
[1644690653911,0.13501807,42891.0,42888.0,0.27094741]
[1644690654104,0.13501807,42891.0,42889.0,0.385516]
[1644690654306,0.13501807,42891.0,42890.0,0.59841251]
[1644690654506,0.13501807,42891.0,42890.0,0.27118551]
[1644690654709,0.13501807,42891.0,42890.0,0.59841251]
[1644690655509,0.13501807,42891.0,42890.0,0.00114069]
[1644690655710,0.13501807,42891.0,42890.0,0.32836769]
[1644690655908,0.13501807,42891.0,42890.0,0.00114069]
[1644690658261,0.46224507,42891.0,42890.0,0.23114069]
[1644690658461,0.32733107,42891.0,42890.0,0.23114069]
[1644690658661,0.13501807,42891.0,42890.0,0.23114069]
[1644690659063,0.46224507,42891.0,42890.0,0.23114069]
[1644690659259,0.46224507,42891.0,42887.0,0.40767746]
[1644690659260,0.13501807,42891.0,42887.0,0.26791307]
[1644690659460,0.13501807,42891.0,42887.0,0.31461307]
[1644690660304,0.22247821,42891.0,42890.0,0.00114069]
[1644690660503,0.13501807,42891.0,42890.0,0.00114069]
[1644690665555,0.13501807,42891.0,42886.0,0.42892703]
[1644690666356,0.13501807,42891.0,42886.0,0.158293]
[1644690666556,0.327227,42890.0,42886.0,0.158293]
[1644690666856,0.13501807,42891.0,42886.0,0.058293]
[1644690667257,0.00060393,42890.0,42887.0,0.26824181]
[1644690667514,0.327227,42889.0,42886.0,0.058293]
[1644690667714,0.00060393,42890.0,42886.0,0.058293]
[1644690668314,0.13501807,42891.0,42886.0,0.058293]
[1644690668514,0.00060393,42890.0,42886.0,0.058293]
[1644690669214,0.3805162,42891.0,42886.0,0.058293]
[1644690669619,0.3805162,42891.0,42886.0,0.288293]
[1644690669818,0.327227,42890.0,42886.0,0.23]
[1644690671018,0.327227,42889.0,42886.0,0.23]
[1644690671261,0.327227,42887.0,42886.0,0.23]
[1644690671461,0.327227,42887.0,42886.0,0.29802399]
[1644690671764,0.327227,42887.0,42886.0,0.23]
[1644690672565,0.58467862,42887.0,42886.0,0.23]
[1644690672764,0.92918268,42887.0,42886.0,0.23]
[1644690672966,0.43159909,42884.0,42877.0,0.1671]
[1644690673163,0.31431921,42883.0,42872.0,0.5752]
[1644690673364,0.31431921,42883.0,42870.0,0.069972]
[1644690673764,0.23823686,42877.0,42870.0,0.05831048]
[1644690673964,0.23823686,42877.0,42872.0,0.06468049]
[1644690674166,0.327227,42876.0,42872.0,0.06468049]
[1644690674564,0.23823686,42877.0,42868.0,0.20772702]
[1644690675006,0.23823686,42877.0,42866.0,0.27528327]
[1644690675208,0.23823686,42877.0,42866.0,0.069978]
[1644690675209,0.28498295,42876.0,42866.0,0.069978]
[1644690675410,0.327227,42875.0,42865.0,0.11663]
[1644690675607,0.28498295,42876.0,42869.0,0.00060438]
[1644690676007,0.327227,42875.0,42869.0,0.00060438]
[1644690676207,0.192313,42874.0,42869.0,0.00060438]
[1644690676608,0.327227,42873.0,42868.0,0.07780775]
[1644690676807,0.327227,42873.0,42869.0,0.00055988]
[1644690677009,0.28498295,42876.0,42869.0,0.00055988]
[1644690677208,0.327227,42875.0,42869.0,0.00055988]
[1644690677411,0.192313,42872.0,42869.0,0.00055988]
[1644690677809,0.192313,42872.0,42863.0,2.65697091]
[1644690677810,0.48018824,42872.0,42863.0,2.65697091]
[1644690678010,0.48018824,42872.0,42868.0,0.00035849]
[1644690678011,0.192313,42872.0,42868.0,0.00035849]
[1644690679054,0.192313,42872.0,42870.0,0.0710552]
[1644690679654,0.192313,42872.0,42868.0,0.00035849]
[1644690679855,0.327227,42869.0,42868.0,0.00035849]
[1644690680061,0.64543177,42869.0,42868.0,0.00035849]
[1644690680356,0.64543177,42869.0,42868.0,0.02332]
[1644690680757,0.73109056,42869.0,42868.0,0.02332]
[1644690681156,0.69213177,42869.0,42868.0,0.02332]
[1644690681358,0.67175211,42869.0,42868.0,0.03332]
[1644690684216,0.62505211,42869.0,42868.0,0.03332]
[1644690684412,0.327227,42869.0,42868.0,0.03332]
[1644690686256,0.62143032,42869.0,42868.0,0.03332]
[1644690687858,0.327227,42869.0,42868.0,0.03332]
[1644690688256,0.3,42877.0,42868.0,0.03332]
[1644690688456,0.1736,42878.0,42869.0,0.327227]
[1644690688657,0.3,42883.0,42869.0,0.327227]
[1644690688856,0.08496502,42881.0,42870.0,0.02388315]
[1644690689059,0.26645204,42879.0,42870.0,0.02388315]
[1644690689256,0.21042361,42876.0,42870.0,0.02388315]
[1644690689457,0.0677663,42867.0,42866.0,0.1704]
[1644690689658,0.0677663,42867.0,42865.0,0.0467]
[1644690689918,0.0677663,42867.0,42866.0,0.40039088]
[1644690690411,0.0677663,42867.0,42866.0,0.50039088]
[1644690690609,0.0677663,42867.0,42866.0,0.60039088]
[1644690690807,0.0677663,42867.0,42866.0,0.76372088]
[1644690692411,0.0677663,42867.0,42866.0,0.76494245]
[1644690692613,0.0677663,42867.0,42866.0,0.43649388]
[1644690693658,0.19001265,42879.0,42866.0,0.43649388]
[1644690693860,0.3,42881.0,42872.0,0.327227]
[1644690694061,0.00060456,42882.0,42874.0,0.327227]
[1644690694260,0.00060456,42882.0,42875.0,0.0467]
[1644690694463,0.00060456,42882.0,42876.0,0.0467]
[1644690694660,0.83981033,42890.0,42876.0,0.0467]
[1644690694863,0.00060462,42882.0,42876.0,0.0467]
[1644690695862,0.20142143,42883.0,42882.0,0.08516868]
[1644690696063,0.17642143,42883.0,42882.0,0.08516868]
[1644690696263,0.17642143,42883.0,42876.0,0.081684]
[1644690696664,0.46419657,42883.0,42876.0,0.0467]
[1644690696964,0.327227,42882.0,42864.0,0.6641]
[1644690697163,0.23675314,42870.0,42864.0,0.6174]
[1644690697415,0.327227,42869.0,42868.0,0.00058128]
[1644690697908,0.23675314,42870.0,42868.0,0.00058128]
[1644690698108,0.327227,42869.0,42868.0,0.00058128]
[1644690698411,0.327227,42869.0,42867.0,0.00058124]
[1644690698608,0.327227,42868.0,42867.0,0.00058124]
[1644690698808,0.192313,42868.0,42867.0,0.00058124]
[1644690699410,0.62421981,42868.0,42862.0,0.069985]
[1644690699709,0.327227,42867.0,42865.0,0.00058126]
[1644690699909,0.49791131,42866.0,42865.0,0.00034541]
[1644690700111,0.192313,42866.0,42865.0,0.00034541]
[1644690700510,0.31764844,42869.0,42865.0,0.00034541]
[1644690700712,0.31764844,42869.0,42862.0,0.06704774]
[1644690701557,0.21250107,42865.0,42862.0,0.06704774]
[1644690701856,0.21250107,42865.0,42855.0,0.369362]
[1644690701857,0.192313,42864.0,42855.0,0.419362]
[1644690702056,0.192313,42864.0,42855.0,0.151662]
[1644690702658,0.327227,42864.0,42856.0,0.26195541]
[1644690703058,0.21250107,42865.0,42856.0,0.26195541]
[1644690703460,0.327227,42864.0,42861.0,0.08913855]
[1644690704058,0.327227,42863.0,42861.0,0.08913855]
[1644690705512,0.192313,42862.0,42861.0,0.08913855]
[1644690705710,0.327227,42862.0,42861.0,0.08913855]
[1644690706511,0.327227,42864.0,42861.0,0.08913855]
[1644690706712,0.327227,42868.0,42861.0,0.08913855]
[1644690707012,0.31764844,42869.0,42861.0,0.08913855]
[1644690707411,0.327227,42868.0,42861.0,0.08913855]
[1644690707612,0.20110978,42867.0,42861.0,0.08913855]
[1644690708113,0.28434912,42869.0,42862.0,0.00060575]
[1644690708313,0.327227,42868.0,42862.0,0.00060575]
[1644690708765,0.28434912,42869.0,42862.0,0.00060575]
[1644690708962,0.327227,42868.0,42862.0,0.00060575]
[1644690709163,0.50687014,42869.0,42861.0,0.08913855]
[1644690709363,0.50687014,42869.0,42863.0,0.00060575]
[1644690710364,0.50687014,42869.0,42861.0,0.08913855]
[1644690710563,0.50687014,42869.0,42863.0,0.00060575]
[1644690710764,0.51315409,42869.0,42863.0,0.00060575]
[1644690711365,0.22252102,42869.0,42863.0,0.00060575]
[1644690711579,0.22252102,42869.0,42861.0,0.08913855]
[1644690711765,0.22252102,42869.0,42863.0,0.00060575]
[1644690712415,0.22252102,42869.0,42863.0,0.03560075]
[1644690712610,0.22252102,42869.0,42863.0,0.034995]
[1644690712611,0.50525528,42869.0,42863.0,0.034995]
[1644690712810,0.22252102,42869.0,42863.0,0.03560075]
[1644690713011,0.00060566,42870.0,42863.0,0.23305695]
[1644690713210,0.327227,42869.0,42863.0,0.29138095]
[1644690713410,0.00060566,42870.0,42863.0,0.29138095]
[1644690713611,0.00060566,42870.0,42865.0,0.05]
[1644690713811,0.1792,42882.0,42866.0,0.373927]
[1644690713812,0.37692357,42882.0,42866.0,0.373927]
[1644690714017,0.62932266,42884.0,42871.0,0.034983]
[1644690714213,0.43159909,42884.0,42872.0,0.6986777]
[1644690714515,0.43159909,42884.0,42876.0,0.327227]
[1644690714710,0.43159909,42884.0,42877.0,0.0467]
[1644690714912,0.43159909,42884.0,42879.0,0.0583]
[1644690715114,0.43159909,42884.0,42880.0,0.327227]
[1644690715314,0.00060554,42883.0,42880.0,0.327227]
[1644690715713,0.00060554,42883.0,42879.0,0.0533]
[1644690716366,0.43159909,42884.0,42881.0,0.058299]
[1644690716570,0.00060554,42883.0,42881.0,0.058299]
[1644690717466,0.43159909,42884.0,42881.0,0.058299]
[1644690717869,0.43220462,42884.0,42881.0,0.058299]
[1644690718270,0.43220462,42884.0,42872.0,0.0467]
[1644690718271,0.192313,42883.0,42872.0,0.0467]
[1644690718470,0.62992819,42884.0,42870.0,0.1]
[1644690718670,0.43159909,42884.0,42870.0,0.1]
[1644690718867,0.00060557,42880.0,42870.0,0.1]
[1644690719073,0.3229819,42874.0,42870.0,0.0997141]
[1644690719473,0.19942819,42869.0,42867.0,0.327227]
[1644690720415,0.19942819,42869.0,42864.0,0.34136146]
[1644690721616,0.19942819,42869.0,42864.0,0.07435171]
[1644690721816,0.19942819,42869.0,42864.0,0.37435171]
[1644690722716,0.19942819,42869.0,42864.0,0.47435171]
[1644690723117,0.19942819,42869.0,42865.0,0.058319]
[1644690724666,0.19942819,42869.0,42866.0,0.327227]
[1644690724865,0.19942819,42869.0,42866.0,0.1]
[1644690725067,0.19942819,42869.0,42867.0,0.327227]
[1644690725270,0.19942819,42869.0,42866.0,0.1]
[1644690725668,0.19942819,42869.0,42867.0,0.327227]
[1644690726269,0.19942819,42869.0,42867.0,0.53389804]
[1644690726468,0.19942819,42869.0,42867.0,0.20667104]
[1644690726669,0.19942819,42869.0,42868.0,0.327227]
[1644690726872,0.19942819,42869.0,42867.0,0.20667104]
[1644690727069,0.19942819,42869.0,42866.0,0.134991]
[1644690727272,0.19942819,42869.0,42866.0,0.034991]
[1644690727515,0.19942819,42869.0,42865.0,0.158319]
[1644690728213,0.19942819,42869.0,42865.0,0.058319]
[1644690732766,0.19942819,42869.0,42866.0,0.327227]
[1644690733865,0.19942819,42869.0,42865.0,0.058319]
[1644690734265,0.19942819,42869.0,42866.0,0.327227]
[1644690734468,0.19942819,42869.0,42865.0,0.058319]
[1644690734667,0.19942819,42869.0,42866.0,0.18640481]
[1644690734922,0.19942819,42869.0,42867.0,0.385542]
[1644690735113,0.19942819,42869.0,42868.0,0.116614]
[1644690735414,0.19942819,42869.0,42868.0,0.590541]
[1644690735815,0.19942819,42869.0,42868.0,0.690541]
[1644690739863,0.19942819,42869.0,42868.0,0.363314]
[1644690740164,0.19942819,42869.0,42868.0,0.327227]